bitfinex-derivatives/quotes_ETHF0:USTF0_20250114
["timestamp","ask_amount","ask_price","bid_price","bid_amount"]
[1736814268714,0.79485,3146.4,3145.9,3.2078]
[1736814269010,0.31797,3146.0,3145.9,3.2078]
[1736814272508,1.359,3146.2,3145.6,0.78921]
[1736814272706,0.318,3145.8,3145.6,0.78921]
[1736814273506,2.15389,3146.2,3145.6,0.78921]
[1736814273707,1.359,3146.2,3145.6,0.4712]
[1736814273907,0.318,3145.7,3145.6,0.4712]
[1736814277618,4.00276,3146.0,3145.1,3.2078]
[1736814277619,2.5645856,3145.9,3145.1,3.2078]
[1736814277914,0.31805,3145.2,3145.1,3.6885]
[1736814278110,0.31809,3144.8,3144.7,3.2078]
[1736814278310,0.31809,3144.8,3144.7,3.6885]
[1736814281013,1.17685443,3145.5,3144.7,3.6885]
[1736814281211,3.2078,3145.6,3144.8,2.5645856]
[1736814281411,0.31803,3145.4,3145.3,3.2078]
[1736814281913,0.79498,3145.8,3145.3,3.52584]
[1736814282219,0.31803,3145.5,3145.4,0.4966]
[1736814284414,0.31803,3145.4,3145.3,3.2078]
[1736814286918,0.79498,3145.8,3145.3,3.2078]
[1736814286919,0.31803,3145.5,3145.3,3.52584]
[1736814287226,0.31801,3145.7,3145.5,0.31802]
[1736814287514,0.31802,3145.5,3145.3,3.2078]
[1736814287717,0.31803,3145.4,3145.3,3.2078]
[1736814290221,0.31807,3145.0,3144.9,3.2078]
[1736814290424,3.4264584,3145.0,3144.9,3.2078]
[1736814291320,0.69985443,3145.2,3144.9,3.2078]
[1736814291514,0.31807,3145.0,3144.9,3.2078]
[1736814292424,0.31803,3145.4,3145.2,0.31805]
[1736814292611,0.79499,3145.8,3145.3,3.2078]
[1736814292816,0.79499,3145.8,3145.4,0.4976]
[1736814293021,0.31802,3145.5,3145.4,0.4976]
[1736814294916,0.31803,3145.4,3145.3,3.2078]
[1736814299524,0.31803,3145.4,3145.3,3.52584]
[1736814299718,0.31803,3145.4,3145.3,3.2078]
[1736814299924,4.4673884,3145.9,3145.3,3.52584]
[1736814300129,0.31803,3145.5,3145.3,3.52584]
[1736814300429,0.31803,3145.4,3145.3,3.2078]
[1736814301033,0.31808,3144.9,3144.8,3.6676]
[1736814302423,0.79509,3145.4,3144.8,3.6676]
[1736814302626,1.15285443,3145.6,3145.1,0.31805]
[1736814302627,0.31805,3145.3,3145.1,0.31805]
[1736814302832,3.71923302,3145.6,3144.8,3.6676]
[1736814303031,0.31806,3145.2,3145.0,0.31807]
[1736814303229,2.56637859,3145.3,3144.8,3.6676]
[1736814303421,0.31808,3144.9,3144.8,3.6676]
[1736814303724,0.31808,3144.9,3144.8,3.98569]
[1736814303926,3.36149859,3145.3,3144.8,3.98569]
[1736814304324,0.31808,3144.9,3144.8,3.98569]
[1736814304534,0.31808,3144.9,3144.8,3.6676]
[1736814305132,0.31808,3144.9,3144.8,3.98569]
[1736814305327,0.31808,3144.9,3144.8,3.6676]
[1736814305827,0.69985443,3145.6,3144.8,8.6676]
[1736814306034,0.31798,3146.0,3145.8,0.31798]
[1736814306234,0.31798,3146.0,3144.8,0.4598]
[1736814306235,3.2078,3146.2,3145.6,5.77417859]
[1736814306430,3.2078,3146.2,3146.1,0.31796]
[1736814306635,3.51944741,3146.8,3146.3,0.31794]
[1736814306834,3.51944741,3146.8,3146.4,0.77373]
[1736814306835,0.31791,3146.6,3146.4,0.77373]
[1736814307024,0.31792,3146.5,3146.4,0.4558]
[1736814307226,3.90765443,3146.9,3146.4,0.4558]
[1736814307427,0.3179,3146.7,3146.4,0.4558]
[1736814307636,0.31792,3146.6,3146.4,0.4558]
[1736814308332,0.31792,3146.6,3146.4,0.77372]
[1736814308333,0.31791,3146.6,3146.4,0.77372]
[1736814308534,0.31792,3146.6,3146.4,0.4558]
[1736814308829,3.2078,3146.9,3146.4,0.4558]
[1736814309035,0.3179,3146.8,3146.6,0.31791]
[1736814309343,1.341,3147.0,3146.6,0.31791]
[1736814309631,0.3179,3146.7,3146.5,1.27432]
[1736814309835,0.31788,3146.9,3146.7,0.3179]
[1736814310127,0.31788,3146.9,3146.6,0.3179]
[1736814310329,0.3179,3146.7,3146.5,0.9564]
[1736814310531,0.31788,3146.9,3146.6,0.3179]
[1736814311034,0.31788,3146.9,3146.6,0.31791]
[1736814311235,3.90765443,3147.3,3146.5,0.9564]
[1736814311437,0.31791,3146.6,3146.5,0.9564]
[1736814312037,0.79463,3147.2,3146.5,0.9564]
[1736814312343,3.90765443,3147.3,3146.5,0.9564]
[1736814312526,0.31786,3147.1,3146.8,0.31788]
[1736814312731,0.31788,3147.0,3146.7,0.31789]
[1736814313226,0.31788,3147.0,3146.8,0.31789]
[1736814313537,0.31787,3147.1,3146.5,0.9564]
[1736814313737,0.31787,3147.0,3146.5,0.9564]
[1736814313934,0.31787,3147.0,3146.7,0.31789]
[1736814314830,3.2078,3147.3,3146.5,0.9564]
[1736814315034,0.79463,3147.2,3146.5,0.9564]
[1736814315432,0.31789,3146.9,3146.6,0.31791]
[1736814315732,3.2078,3147.3,3146.5,0.9564]
[1736814316134,0.31785,3147.2,3146.9,0.31788]
[1736814316440,0.31787,3147.1,3146.8,0.31789]
[1736814317836,0.31785,3147.3,3147.1,0.31786]
[1736814318037,0.31782,3147.5,3147.2,0.79405]
[1736814318337,3.2078,3147.7,3147.6,0.31781]
[1736814318529,3.2078,3148.4,3147.6,3.2078]
[1736814318732,0.31775,3148.2,3147.9,0.31778]
[1736814319437,0.31776,3148.1,3147.8,0.31779]
[1736814319637,3.2078,3148.4,3147.7,0.31779]
[1736814319940,0.31777,3148.0,3147.7,0.31779]
[1736814320532,3.2078,3148.4,3147.6,3.2078]
[1736814320732,0.3178,3147.7,3147.6,3.2078]
[1736814320937,3.58224748,3148.4,3147.6,3.2078]
[1736814321142,4.00214,3148.4,3147.6,3.2078]
[1736814321345,0.31779,3147.8,3147.6,3.2078]
[1736814321642,0.3178,3147.7,3147.6,3.2078]
[1736814324044,0.3178,3147.8,3147.6,3.2078]
[1736814324343,0.3178,3147.7,3147.6,3.2078]
[1736814324841,0.31777,3148.1,3147.8,0.31778]
[1736814325144,3.2078,3148.4,3147.6,3.2078]
[1736814325339,0.31775,3148.2,3147.9,0.31777]
[1736814325542,3.2078,3148.4,3147.8,0.31778]
[1736814325735,0.31774,3148.3,3147.6,4.00231]
[1736814325942,0.31775,3148.3,3148.0,0.31777]
[1736814326142,3.2078,3148.4,3147.8,0.31778]
[1736814326346,0.31774,3148.3,3147.8,0.31778]
[1736814326656,3.2078,3148.4,3147.8,0.31778]
[1736814326940,0.31777,3148.0,3147.8,0.31778]
[1736814327548,0.31778,3147.9,3147.7,0.31779]
[1736814327744,1.11209,3148.3,3147.6,3.5256]
[1736814327944,0.31774,3148.3,3147.6,3.2078]
[1736814328150,3.2078,3148.4,3147.6,3.2078]
[1736814328451,0.31776,3148.1,3147.9,0.31777]
[1736814328744,0.79433,3148.4,3147.6,3.2078]
[1736814328950,0.31776,3148.1,3147.9,0.31777]
[1736814329349,0.31777,3148.0,3147.8,0.31779]
[1736814330053,1.8009,3148.6,3147.6,3.2078]
[1736814330349,0.31776,3148.2,3148.0,0.31776]
[1736814330550,0.31776,3148.2,3148.1,0.4543]
[1736814330951,2.59519,3148.6,3148.1,0.4543]
[1736814331146,0.31775,3148.2,3148.1,0.4543]
[1736814331957,0.3178,3147.8,3147.6,3.5256]
[1736814332157,2.56088091,3148.3,3147.6,3.6712]
[1736814332450,0.3178,3147.7,3147.6,3.6712]
[1736814332655,0.3178,3147.7,3146.9,0.79469]
[1736814332656,0.31785,3147.2,3147.0,0.4634]
[1736814332855,0.31786,3147.1,3147.0,0.4634]
[1736814333652,0.31789,3146.8,3146.7,3.2078]
[1736814337355,3.2078,3146.8,3146.1,3.2078]
[1736814337550,0.31795,3146.2,3146.1,3.2078]
[1736814337751,0.31799,3145.8,3145.7,0.4908]
[1736814337949,3.2078,3146.4,3145.7,0.4908]
[1736814338154,0.31797,3146.1,3145.7,0.4908]
[1736814338354,0.31797,3146.1,3146.0,0.31797]
[1736814338553,0.79482,3146.5,3145.7,0.4908]
[1736814338754,0.31797,3146.0,3145.8,0.31798]
[1736814338954,0.31796,3146.1,3146.0,0.31797]
[1736814339156,0.31799,3145.9,3145.7,0.80879]
[1736814339754,0.31798,3146.0,3145.8,0.31799]
[1736814340060,0.31798,3145.9,3145.8,0.31799]
[1736814340558,0.31799,3145.8,3145.7,0.8088]
[1736814340863,0.31805,3145.3,3145.2,3.2078]
[1736814342055,0.3181,3144.8,3144.6,3.5259]
[1736814342349,3.2078,3145.2,3144.6,3.2078]
[1736814342651,0.3181,3144.7,3144.6,3.2078]
[1736814342851,0.79516,3145.1,3144.5,0.4733]
[1736814343058,0.31811,3144.6,3144.5,0.4733]
[1736814343656,0.79522,3144.9,3144.2,3.2078]
[1736814343657,7.10875616,3144.7,3144.2,3.2078]
[1736814343863,0.31814,3144.3,3144.2,3.2078]
[1736814344253,0.31818,3143.9,3143.8,3.2078]
[1736814344860,0.79529,3144.6,3143.7,0.4894]
[1736814344861,3.2078,3144.3,3143.7,0.4894]
[1736814345158,0.31819,3143.9,3143.7,0.4894]
[1736814345366,0.31819,3143.9,3143.7,0.8076]
[1736814345557,0.31819,3143.8,3143.7,0.4894]
[1736814345965,4.00317,3144.3,3143.7,0.4894]
[1736814345966,0.31819,3143.9,3143.7,0.4894]
[1736814346166,0.31818,3144.0,3143.7,0.8076]
[1736814346361,0.31818,3144.0,3143.7,0.4894]
[1736814346659,0.31818,3144.0,3143.7,0.8076]
[1736814347467,3.2078,3144.3,3143.7,0.4894]
[1736814347764,0.31819,3143.9,3143.7,0.4894]
[1736814347960,0.31819,3143.8,3143.7,0.4894]
[1736814348270,0.31817,3144.1,3143.8,0.31819]
[1736814348565,0.31817,3144.1,3143.7,0.80759]
[1736814348868,0.31817,3144.1,3143.8,0.31819]
[1736814349059,0.31817,3144.1,3143.7,0.4894]
[1736814349464,0.31817,3144.1,3143.8,0.31819]
[1736814349869,3.2078,3144.3,3143.8,0.31819]
[1736814350167,0.31816,3144.2,3143.9,0.31818]
[1736814350669,0.31816,3144.2,3143.7,0.4894]
[1736814350970,0.31815,3144.2,3143.7,0.8076]
[1736814351178,3.2078,3144.3,3143.7,0.4894]
[1736814351366,0.31817,3144.1,3143.7,0.8076]
[1736814351566,0.31817,3144.1,3143.7,0.4894]
[1736814351770,0.31817,3144.1,3143.7,0.8076]
[1736814351973,0.31817,3144.1,3143.7,0.4894]
[1736814352172,0.31817,3144.1,3143.8,0.31819]
[1736814352360,0.31816,3144.2,3143.8,0.31819]
[1736814352565,3.2078,3144.3,3143.7,0.4894]
[1736814353372,0.31819,3143.8,3143.7,0.4894]
[1736814353876,3.10568616,3144.1,3143.4,3.2078]
[1736814354079,3.90109616,3144.1,3143.4,3.2078]
[1736814354371,0.31822,3143.6,3143.4,3.2078]
[1736814355874,0.31822,3143.5,3143.4,3.2078]
[1736814356066,0.31822,3143.6,3143.4,3.52603]
[1736814356271,0.4839,3144.0,3143.4,3.2078]
[1736814356469,0.3182,3143.8,3143.6,0.31821]
[1736814356869,0.31821,3143.7,3143.5,0.31822]
[1736814358164,0.31819,3143.8,3143.6,0.31821]
[1736814358369,0.4758,3144.2,3143.5,0.31822]
[1736814358569,0.31821,3143.7,3143.4,3.2078]
[1736814358770,0.31821,3143.7,3143.4,3.52602]
[1736814358970,0.4758,3144.2,3143.4,3.2078]
[1736814359168,3.10568616,3143.8,3143.0,3.6722]
[1736814359369,0.31826,3143.1,3143.0,3.6722]
[1736814359775,2.56907368,3143.6,3143.0,3.6722]
[1736814359971,0.31825,3143.3,3143.1,0.31826]
[1736814360172,3.2078,3143.4,3143.0,3.6722]
[1736814360378,3.2078,3143.4,3142.3,3.2078]
[1736814360379,2.56907368,3143.3,3142.3,3.2078]
[1736814360681,0.31827,3143.1,3142.9,0.31828]
[1736814360873,0.31828,3143.0,3142.8,0.31829]
[1736814361978,0.31828,3142.9,3142.8,0.31829]
[1736814362179,3.2078,3143.4,3142.6,0.4821]
[1736814362378,0.31821,3143.7,3143.5,0.31821]
[1736814362576,3.2078,3143.8,3143.1,3.2078]
[1736814362774,0.79551,3143.7,3142.9,0.31828]
[1736814362976,0.79551,3143.7,3142.7,3.5261]
[1736814362977,0.79561,3143.4,3142.7,3.5261]
[1736814363174,0.31828,3143.0,3142.8,0.31829]
[1736814363978,0.31828,3143.0,3142.7,3.2078]
[1736814364281,3.2078,3143.3,3142.7,3.2078]
[1736814364482,0.31828,3143.0,3142.7,3.2078]
[1736814364776,0.31828,3143.0,3142.8,0.31829]
[1736814364975,3.2078,3143.3,3142.7,3.2078]
[1736814364976,0.31829,3142.8,3142.7,3.2078]
[1736814366077,0.31829,3142.8,3142.1,3.52616]
[1736814366078,0.31835,3142.3,3142.1,3.52616]
[1736814366276,0.31835,3142.2,3142.1,3.2078]
[1736814366472,0.31835,3142.2,3141.9,0.4685]
[1736814366473,0.3184,3141.8,3141.7,3.2078]
[1736814367688,0.4909,3142.1,3141.7,3.2078]
[1736814367980,0.31838,3142.0,3141.7,3.5262]
[1736814368178,0.31838,3142.0,3141.7,3.2078]
[1736814368384,0.31838,3142.0,3141.5,0.31843]
[1736814368583,0.31838,3142.0,3141.4,0.4959]
[1736814368584,0.80927,3142.1,3141.4,0.4959]
[1736814368781,4.5358,3142.5,3141.7,3.2078]
[1736814369082,3.1133612,3142.3,3141.7,3.2078]
[1736814369288,3.1133612,3142.0,3141.2,0.31845]
[1736814369588,0.31842,3141.6,3141.3,0.31844]
[1736814369779,0.31842,3141.6,3141.1,3.2078]
[1736814369981,0.31842,3141.6,3141.3,0.31844]
[1736814370180,3.2078,3142.1,3141.4,3.1133612]
[1736814370382,1.328,3142.7,3141.9,3.2078]
[1736814370585,0.31832,3142.6,3142.4,0.31833]
[1736814370781,1.328,3142.8,3142.2,0.31835]
[1736814370782,0.31833,3142.5,3142.2,0.31835]
[1736814371484,0.31833,3142.4,3142.2,0.31835]
[1736814371984,1.328,3142.7,3142.0,0.9355]
[1736814372386,1.328,3142.7,3141.5,1.25005]
[1736814372387,0.31839,3141.9,3141.6,0.31841]
[1736814372581,0.3184,3141.8,3141.5,3.98022]
[1736814372776,0.9454,3142.2,3141.6,0.31841]
[1736814372982,0.31839,3141.9,3141.6,0.31841]
[1736814373184,0.31839,3141.9,3141.5,3.2078]
[1736814373486,0.31839,3141.9,3141.7,0.3184]
[1736814373682,0.31837,3142.1,3141.5,3.2078]
[1736814373989,0.31837,3142.1,3141.8,0.31839]
[1736814374182,4.1672,3142.5,3141.8,0.31839]
[1736814374382,0.31838,3142.0,3141.8,0.31839]
[1736814374688,0.31839,3141.9,3141.6,0.31841]
[1736814374990,0.31839,3141.9,3141.7,0.3184]
[1736814375483,0.31838,3142.0,3141.8,0.31839]
[1736814376582,0.31838,3142.0,3141.5,3.2078]
[1736814376776,0.31838,3142.0,3141.8,0.31839]
[1736814377390,0.31838,3142.0,3141.7,0.3184]
[1736814377784,0.31839,3141.9,3141.7,0.3184]
[1736814377990,1.328,3142.3,3141.8,0.31839]
[1736814377991,0.31838,3142.0,3141.8,0.31839]
[1736814378494,1.328,3142.3,3141.5,3.2078]
[1736814378788,0.31838,3142.0,3141.8,0.31839]
[1736814379189,1.328,3142.3,3141.5,3.2078]
[1736814379490,0.31845,3141.3,3141.2,0.9395]
[1736814379687,0.79597,3141.9,3141.2,0.9395]
[1736814379892,0.31843,3141.5,3141.3,0.31844]
[1736814380093,3.1133612,3142.2,3141.2,0.9395]
[1736814380289,1.328,3142.1,3141.2,1.73562]
[1736814380589,1.328,3142.2,3141.4,3.2078]
[1736814381096,0.31842,3141.6,3141.5,0.31842]
[1736814381387,4.4413612,3142.2,3141.4,3.2078]
[1736814381388,0.31843,3141.5,3141.4,3.2078]
[1736814381587,0.31845,3141.3,3141.2,0.9395]
[1736814381789,0.79597,3141.9,3141.4,0.31843]
[1736814381986,0.31841,3141.7,3141.6,0.31841]
[1736814382188,0.31843,3141.5,3141.4,3.52623]
[1736814382385,4.00376,3142.0,3141.4,0.31843]
[1736814382587,4.00376,3142.0,3141.5,0.31842]
[1736814382588,0.31842,3141.6,3141.5,0.31842]
[1736814382790,4.00376,3142.0,3141.2,0.9395]
[1736814382993,0.31841,3141.7,3141.5,0.31842]
[1736814383194,0.31842,3141.6,3141.4,0.31843]
[1736814383394,0.31842,3141.6,3141.5,0.31842]
[1736814383596,3.2078,3142.0,3141.4,3.2078]
[1736814383795,0.31841,3141.7,3141.6,0.31841]
[1736814384094,0.31841,3141.7,3141.4,3.2078]
[1736814384292,0.79596,3142.0,3141.4,3.2078]
[1736814384495,0.31843,3141.5,3141.4,3.2078]
[1736814385397,3.2078,3141.9,3141.4,3.2078]
[1736814385592,0.31841,3141.7,3141.6,0.31841]
[1736814386399,1.328,3142.1,3141.4,3.2078]
[1736814386594,0.31842,3141.6,3141.4,3.52623]
[1736814386900,0.31843,3141.5,3141.4,3.2078]
[1736814389413,3.2078,3141.9,3141.5,0.31842]
[1736814389703,0.31842,3141.6,3141.4,3.52623]
[1736814389903,0.31841,3141.7,3141.5,0.31842]
[1736814390100,0.31842,3141.6,3141.4,3.52623]
[1736814390405,0.3184,3141.8,3141.6,0.31841]
[1736814390703,0.31841,3141.7,3141.5,0.31842]
[1736814391297,0.3184,3141.8,3141.6,0.31841]
[1736814391498,0.31841,3141.7,3141.5,0.31842]
[1736814392095,3.2078,3141.9,3141.4,3.2078]
[1736814392302,3.2078,3143.2,3141.8,3.2078]
[1736814392497,0.25657029,3143.3,3142.4,3.2078]
[1736814392498,0.4744,3143.3,3142.4,3.2078]
[1736814392698,0.31829,3142.8,3142.4,3.2078]
[1736814392901,3.2078,3143.2,3142.4,3.2078]
[1736814393205,0.31831,3142.6,3142.0,3.2078]
[1736814393408,0.31836,3142.2,3142.0,3.52617]
[1736814393600,0.4744,3142.5,3142.0,3.2078]
[1736814393795,0.4744,3142.5,3141.4,2.57126115]
[1736814393796,0.31841,3141.7,3141.5,0.31842]
[1736814394002,2.57126115,3142.1,3141.4,3.2078]
[1736814394195,4.68013796,3142.4,3141.4,3.2078]
[1736814394196,0.31838,3142.0,3141.8,0.31839]
[1736814395000,3.88429796,3142.4,3141.4,3.2078]
[1736814395203,3.2078,3142.8,3142.7,0.3183]
[1736814395409,3.2078,3142.8,3142.3,1.4382]
[1736814395703,6.57481115,3142.8,3142.3,0.4931]
[1736814395905,0.31832,3142.6,3142.4,0.31833]
[1736814396306,0.31832,3142.6,3142.3,0.4931]
[1736814396307,0.31833,3142.5,3142.3,0.81144]
[1736814396901,0.31833,3142.5,3142.4,0.31833]
[1736814397101,0.31833,3142.5,3142.3,0.4931]
[1736814397102,2.46799796,3142.7,3142.3,0.4931]
[1736814397297,1.7915,3142.7,3142.3,0.4931]
[1736814397709,2.1098,3142.7,3142.5,0.31832]
[1736814397911,1.338,3142.7,3142.6,0.31831]
[1736814398105,3.5261,3142.8,3142.6,0.31831]
[1736814398311,0.67649796,3143.0,3142.3,0.4931]
[1736814398312,1.338,3143.0,3142.3,0.4931]
[1736814398612,0.31828,3142.9,3142.7,0.3183]
[1736814400020,4.36276115,3143.1,3142.3,0.4931]
[1736814400219,0.31829,3142.9,3142.6,0.31831]
[1736814400518,0.31829,3142.9,3142.3,0.4931]
[1736814400716,0.31829,3142.9,3142.7,0.3183]
[1736814400918,0.31829,3142.9,3142.3,0.4931]
[1736814401118,0.31829,3142.9,3142.6,0.31831]
[1736814401809,0.31829,3142.8,3142.6,0.31831]
[1736814402010,4.36276115,3143.1,3142.3,0.4931]
[1736814402212,2.57126115,3142.5,3141.8,3.2078]
[1736814402516,0.31835,3142.3,3142.0,0.31837]
[1736814402816,0.31836,3142.2,3141.9,0.31838]
[1736814403026,0.31836,3142.2,3141.9,0.31839]
[1736814403615,6.17929796,3142.4,3141.9,0.31839]
[1736814403918,0.31837,3142.1,3141.9,0.31839]
[1736814404320,6.17929796,3142.4,3141.8,3.2078]
[1736814404521,0.31839,3141.9,3141.8,3.2078]
[1736814404919,0.3184,3141.8,3141.6,0.4901]
[1736814405123,0.31844,3141.4,3141.2,3.52625]
[1736814406020,2.3051,3141.7,3140.8,3.2078]
[1736814406021,0.31848,3141.1,3140.8,3.2078]
[1736814406222,0.31848,3141.0,3140.8,3.52629]
[1736814406420,0.31846,3141.2,3141.0,0.31847]
[1736814406626,0.31847,3141.1,3140.9,0.31848]
[1736814407025,2.57126115,3141.3,3140.8,3.2078]
[1736814407319,0.31848,3141.0,3140.8,3.5263]
[1736814408521,0.31848,3141.0,3140.8,3.2078]
[1736814409115,0.31848,3141.0,3140.4,3.2078]
[1736814409116,3.90926115,3141.0,3140.4,3.2078]
[1736814409317,0.7963,3140.6,3140.0,3.2078]
[1736814409525,0.31857,3140.1,3140.0,3.2078]
[1736814409920,2.57126115,3140.2,3139.6,3.72761493]
[1736814410125,0.31859,3139.9,3139.6,4.04622493]
[1736814410327,0.31859,3139.9,3139.6,3.52641]
[1736814410514,0.31859,3139.9,3139.6,3.2078]
[1736814410722,0.31861,3139.8,3139.6,3.2078]
[1736814410917,2.88985115,3139.9,3139.6,3.2078]
[1736814411124,0.3186,3139.8,3139.6,3.2078]
[1736814411722,2.88985115,3139.9,3139.6,3.52642]
[1736814412118,2.88985115,3139.9,3139.6,3.2078]
[1736814412320,2.88985115,3139.9,3139.6,3.52641]
[1736814412628,3.97768021,3140.2,3139.6,3.2078]
[1736814412831,3.8833477,3140.6,3140.0,3.2078]
[1736814413022,3.2078,3140.6,3140.3,0.31854]
[1736814413226,3.2078,3140.6,3140.0,3.2078]
[1736814413227,3.2078,3140.6,3140.4,0.31854]
[1736814413425,0.79611,3141.4,3140.1,0.4736]
[1736814413426,6.09753115,3141.1,3140.5,0.31853]
[1736814413630,0.4738,3141.3,3140.7,0.3185]
[1736814413823,0.31847,3141.1,3140.7,0.3185]
[1736814414330,0.31847,3141.1,3140.4,3.2078]
[1736814414529,0.31848,3141.0,3140.7,0.3185]
[1736814414726,0.31848,3141.0,3140.6,0.31851]
[1736814414927,5.77906115,3141.1,3140.4,3.2078]
[1736814415126,2.57126115,3140.8,3140.4,3.2078]
[1736814415330,0.31853,3140.5,3140.4,3.2078]
[1736814415525,3.11883743,3140.9,3140.4,3.2078]
[1736814415526,0.78621468,3141.0,3140.4,3.2078]
[1736814415726,0.31852,3140.6,3140.4,3.2078]
[1736814417023,0.31852,3140.6,3140.3,0.31855]
[1736814418330,0.31852,3140.6,3140.2,0.80955]
[1736814418532,0.31853,3140.5,3140.2,0.80955]
[1736814418728,0.31853,3140.5,3140.2,0.80956]
[1736814418929,3.11883743,3140.8,3140.2,0.491]
[1736814419233,0.31855,3140.3,3140.2,0.491]
[1736814419624,3.11883743,3140.5,3139.5,3.2078]
[1736814419822,3.11883743,3140.0,3139.5,3.2078]
[1736814420019,3.11883743,3140.0,3138.3,3.11883743]
[1736814420020,0.3187,3138.8,3138.7,3.2078]
[1736814420937,0.31873,3138.5,3138.4,0.4681]
[1736814421321,0.31875,3138.3,3138.2,3.2078]
[1736814421926,0.31874,3138.4,3138.2,3.2078]
[1736814422229,0.31871,3138.8,3138.4,0.31873]
[1736814422426,3.2078,3139.0,3138.2,3.2078]
[1736814422726,0.79663,3139.3,3138.6,3.52652]
[1736814422931,0.3187,3138.8,3138.6,3.2078]
[1736814423232,0.3187,3138.8,3138.2,3.2078]
[1736814423233,0.31875,3138.3,3138.2,3.2078]
[1736814423627,3.11883743,3138.8,3138.2,3.2078]
[1736814423827,0.31875,3138.4,3138.2,3.2078]
[1736814424331,0.31874,3138.5,3138.2,3.52656]
[1736814425128,0.31874,3138.5,3138.2,3.2078]
[1736814425334,0.31874,3138.5,3138.2,3.52655]
[1736814425731,0.31871,3138.7,3138.4,0.31874]
[1736814426032,0.31872,3138.6,3138.3,0.31875]
[1736814426229,3.2078,3139.0,3138.2,3.2078]
[1736814426637,0.31874,3138.5,3138.2,3.2078]
[1736814426832,0.31873,3138.6,3138.3,0.31875]
[1736814427234,0.31871,3138.7,3138.4,0.31873]
[1736814427435,3.2078,3139.0,3138.2,3.2078]
[1736814427859,0.31873,3138.5,3138.2,3.52655]
[1736814428052,3.11883743,3138.8,3138.2,3.2078]
[1736814428246,0.31875,3138.4,3138.2,3.2078]
[1736814428445,0.31875,3138.3,3138.2,3.2078]
[1736814429661,0.31874,3138.4,3138.2,3.2078]
[1736814429852,3.6977,3139.0,3138.2,3.2078]
[1736814430147,0.31873,3138.6,3138.3,0.31875]
[1736814430335,3.2078,3139.0,3138.2,3.2078]
[1736814430537,0.3187,3138.8,3138.5,0.31873]
[1736814430834,3.2078,3139.0,3138.2,3.2078]
[1736814431034,0.31874,3138.4,3138.2,3.2078]
[1736814431236,3.2078,3139.0,3138.3,0.31875]
[1736814431237,0.31872,3138.6,3138.3,0.31875]
[1736814431438,0.31874,3138.5,3138.2,3.52656]
[1736814431937,0.31874,3138.4,3138.2,3.52656]
[1736814432538,0.79673,3138.9,3138.3,0.31874]
[1736814432734,3.2078,3139.0,3138.2,3.2078]
[1736814432936,0.31871,3138.7,3138.5,0.31872]
[1736814433240,0.31866,3139.2,3138.9,0.31868]
[1736814433440,0.4834,3139.5,3138.9,0.31868]
[1736814433739,0.4834,3139.5,3138.6,3.6922]
[1736814433740,0.31865,3139.4,3139.1,0.31866]
[1736814433939,0.31864,3139.4,3139.2,0.31866]
[1736814434135,0.31864,3139.4,3139.3,0.4844]
[1736814434338,1.2507639,3140.1,3139.3,0.4844]
[1736814434339,0.9518,3140.1,3139.3,0.4844]
[1736814434637,3.2078,3140.2,3139.5,0.31863]
[1736814434638,0.31858,3140.0,3139.5,0.31863]
[1736814434837,3.2078,3140.2,3139.7,0.3186]
[1736814435034,0.31859,3140.0,3139.7,0.3186]
[1736814435236,0.31857,3140.1,3139.7,0.3186]
[1736814435434,0.31858,3140.1,3139.8,0.31859]
[1736814435738,0.79643,3140.1,3139.5,0.80952]
[1736814435935,3.2078,3140.2,3139.6,0.31861]
[1736814436135,0.31862,3139.6,3139.4,4.00514]
[1736814436738,0.31863,3139.5,3139.4,0.4787]
[1736814437135,0.31864,3139.4,3139.3,0.4844]
[1736814437741,3.2078,3139.4,3138.8,0.4853]
[1736814437942,0.31866,3139.3,3138.8,0.4853]
[1736814438142,0.31866,3139.3,3139.1,0.31867]
[1736814438338,0.31864,3139.5,3139.2,0.31865]
[1736814438540,0.31864,3139.5,3139.0,3.2078]
[1736814438745,3.2078,3139.8,3139.0,3.2078]
[1736814438946,3.2078,3139.8,3139.2,0.31865]
[1736814439238,0.31863,3139.6,3139.3,0.31864]
[1736814439439,0.31863,3139.6,3139.4,0.4788]
[1736814439643,0.31863,3139.6,3139.4,0.79744]
[1736814439843,0.31861,3139.7,3139.4,0.79743]
[1736814440037,3.2078,3139.8,3139.4,0.79743]
[1736814440238,0.31858,3140.0,3139.4,0.79743]
[1736814440439,0.31862,3139.7,3139.4,0.79743]
[1736814441146,0.31862,3139.6,3139.4,0.79743]
[1736814441346,0.31863,3139.5,3139.4,0.4788]
[1736814442042,0.31863,3139.5,3138.8,0.4853]
[1736814442043,0.31867,3139.2,3138.9,0.31868]
[1736814442346,3.2078,3139.4,3138.9,0.4914]
[1736814442742,0.31868,3139.0,3138.9,0.4914]
[1736814442935,0.31865,3139.3,3139.1,0.31867]
[1736814443139,0.4688,3139.6,3138.9,0.4914]
[1736814443140,0.78743,3139.6,3139.3,0.31865]
[1736814443447,3.2078,3139.8,3139.0,4.00449]
[1736814443847,0.31859,3139.9,3139.6,0.31861]
[1736814444146,0.31859,3139.9,3139.7,0.8134]
[1736814444741,0.31858,3140.0,3139.8,0.31859]
[1736814445642,3.6766,3140.2,3139.7,0.4948]
[1736814445843,0.31858,3140.0,3139.9,0.02272718]
[1736814450366,0.31867,3139.1,3138.9,4.02249]
[1736814450568,0.31867,3139.1,3138.9,0.81469]